[Event "Live Chess"]
[Site "Chess.com"]
[Date "2023.05.21"]
[Round "-"]
[White "Tushinskiy"]
[Black "Trendle"]
[Result "1-0"]
[WhiteElo "2175"]
[BlackElo "2658"]
[TimeControl "300"]
[EndTime "3:06:14 PDT"]
[Termination "Tushinskiy won by checkmate"]

1. d4 {[%clk 0:04:58.4]} 1... e6 {[%clk 0:04:57.4]} 2. c3 {[%clk 0:04:58.3]}
2... f5 {[%clk 0:04:55.8]} 3. Nf3 {[%clk 0:04:54.8]} 3... Nf6 {[%clk 0:04:55.2]}
4. Bf4 {[%clk 0:04:52.7]} 4... Be7 {[%clk 0:04:53.9]} 5. Nbd2 {[%clk 0:04:41.8]}
5... O-O {[%clk 0:04:53.1]} 6. e3 {[%clk 0:04:40.8]} 6... b6 {[%clk 0:04:51.8]}
7. Bd3 {[%clk 0:04:39.7]} 7... Bb7 {[%clk 0:04:51]} 8. Qe2 {[%clk 0:04:39.1]}
8... Nh5 {[%clk 0:04:44.3]} 9. Bg3 {[%clk 0:04:37.7]} 9... d6 {[%clk 0:04:40.7]}
10. O-O-O {[%clk 0:04:36]} 10... Nd7 {[%clk 0:04:37]} 11. Bc2 {[%clk 0:04:30.9]}
11... Kh8 {[%clk 0:04:30.1]} 12. h3 {[%clk 0:04:27.9]} 12... Nxg3 {[%clk
0:04:28.2]} 13. fxg3 {[%clk 0:04:27.8]} 13... Nf6 {[%clk 0:04:23.2]} 14. g4
{[%clk 0:04:26.2]} 14... Ne4 {[%clk 0:04:19.3]} 15. Nxe4 {[%clk 0:04:23]} 15...
fxe4 {[%clk 0:04:15.5]} 16. Nd2 {[%clk 0:04:21.7]} 16... d5 {[%clk 0:04:09.6]}
17. g3 {[%clk 0:04:20.7]} 17... c5 {[%clk 0:04:07.8]} 18. h4 {[%clk 0:04:17.7]}
18... Rc8 {[%clk 0:04:05.9]} 19. dxc5 {[%clk 0:04:16.5]} 19... bxc5 {[%clk
0:04:04.4]} 20. Nxe4 {[%clk 0:04:15.1]} 20... Qa5 {[%clk 0:03:50.7]} 21. Ng5
{[%clk 0:04:13.2]} 21... d4 {[%clk 0:03:33.1]} 22. exd4 {[%clk 0:04:07]} 22...
cxd4 {[%clk 0:03:27.3]} 23. Qd3 {[%clk 0:03:54.8]} 23... Bxg5+ {[%clk
0:03:01.2]} 24. hxg5 {[%clk 0:03:53]} 24... Qxg5+ {[%clk 0:03:01.1]} 25. Kb1
{[%clk 0:03:52]} 25... Bxh1 {[%clk 0:02:59.9]} 26. Qxh7# {[%clk 0:03:50.6]} 1-0

[Event "Live Chess"]
[Site "Chess.com"]
[Date "2023.05.21"]
[Round "-"]
[White "LiamClery2020"]
[Black "JanMur7"]
[Result "1-0"]
[WhiteElo "1993"]
[BlackElo "1965"]
[TimeControl "300"]
[EndTime "3:06:22 PDT"]
[Termination "LiamClery2020 won by checkmate"]

1. e4 {[%clk 0:04:59.3]} 1... e5 {[%clk 0:04:58.8]} 2. Nc3 {[%clk 0:04:57.4]}
2... Nf6 {[%clk 0:04:57.6]} 3. f4 {[%clk 0:04:56.6]} 3... d5 {[%clk 0:04:57.2]}
4. fxe5 {[%clk 0:04:55.9]} 4... Nxe4 {[%clk 0:04:56.7]} 5. Qf3 {[%clk
0:04:55.8]} 5... Nxc3 {[%clk 0:04:54.7]} 6. bxc3 {[%clk 0:04:55.7]} 6... c5
{[%clk 0:04:53.9]} 7. Bb5+ {[%clk 0:04:55]} 7... Nc6 {[%clk 0:04:52.9]} 8. Qg3
{[%clk 0:04:54.4]} 8... Be6 {[%clk 0:04:51.7]} 9. Nf3 {[%clk 0:04:53.8]} 9... h5
{[%clk 0:04:41.3]} 10. O-O {[%clk 0:04:51]} 10... h4 {[%clk 0:04:38.5]} 11. Qf4
{[%clk 0:04:50.3]} 11... h3 {[%clk 0:04:31.9]} 12. g3 {[%clk 0:04:47]} 12... c4
{[%clk 0:04:28.5]} 13. Ng5 {[%clk 0:04:44.1]} 13... Qb6+ {[%clk 0:04:10.3]} 14.
d4 {[%clk 0:04:42.7]} 14... cxd3+ {[%clk 0:04:07.6]} 15. Be3 {[%clk 0:04:39.7]}
15... Bc5 {[%clk 0:03:46.5]} 16. Bxc6+ {[%clk 0:04:36.2]} 16... bxc6 {[%clk
0:03:45.7]} 17. Bxc5 {[%clk 0:04:31]} 17... Qxc5+ {[%clk 0:03:45.6]} 18. Kh1
{[%clk 0:04:30.3]} 18... Qe7 {[%clk 0:03:42.9]} 19. cxd3 {[%clk 0:04:27.9]}
19... Rh5 {[%clk 0:03:34.9]} 20. Nxe6 {[%clk 0:04:23.4]} 20... Qxe6 {[%clk
0:03:32.3]} 21. d4 {[%clk 0:04:22.8]} 21... Rb8 {[%clk 0:03:25.5]} 22. Qd2
{[%clk 0:04:17.1]} 22... Rf5 {[%clk 0:03:20.1]} 23. Rfb1 {[%clk 0:04:14.3]}
23... Rxb1+ {[%clk 0:03:10.7]} 24. Rxb1 {[%clk 0:04:11.9]} 24... Qg6 {[%clk
0:02:53]} 25. Qb2 {[%clk 0:03:43.3]} 25... Rf3 {[%clk 0:01:59.8]} 26. Qb8+
{[%clk 0:03:38.5]} 26... Ke7 {[%clk 0:01:58.4]} 27. Rb7+ {[%clk 0:03:34.4]}
27... Ke6 {[%clk 0:01:57.6]} 28. Qc8# {[%clk 0:03:31.1]} 1-0

[Event "Live Chess"]
[Site "Chess.com"]
[Date "2023.05.21"]
[Round "-"]
[White "SupremeTactician"]
[Black "JamesWallman"]
[Result "1-0"]
[WhiteElo "2228"]
[BlackElo "796"]
[TimeControl "300"]
[EndTime "3:06:23 PDT"]
[Termination "SupremeTactician won by checkmate"]

1. e4 {[%clk 0:04:59.7]} 1... e5 {[%clk 0:04:56.6]} 2. Nf3 {[%clk 0:04:55.8]}
2... Nc6 {[%clk 0:04:52.6]} 3. Bb5 {[%clk 0:04:55]} 3... d6 {[%clk 0:04:48.9]}
4. O-O {[%clk 0:04:53.8]} 4... Nf6 {[%clk 0:04:44.8]} 5. d4 {[%clk 0:04:52.4]}
5... Nxe4 {[%clk 0:04:40.2]} 6. dxe5 {[%clk 0:04:48.3]} 6... dxe5 {[%clk
0:04:21.5]} 7. Qxd8+ {[%clk 0:04:45]} 7... Kxd8 {[%clk 0:04:16.6]} 8. Bxc6
{[%clk 0:04:44.9]} 8... bxc6 {[%clk 0:04:13.3]} 9. Nxe5 {[%clk 0:04:44.8]} 9...
Bd6 {[%clk 0:04:03.3]} 10. Nxf7+ {[%clk 0:04:42.9]} 10... Ke7 {[%clk 0:03:56]}
11. Nxh8 {[%clk 0:04:42.8]} 11... Be6 {[%clk 0:03:46.8]} 12. Be3 {[%clk
0:04:40.1]} 12... Rxh8 {[%clk 0:03:42]} 13. Nd2 {[%clk 0:04:37.9]} 13... Rf8
{[%clk 0:03:32]} 14. Nxe4 {[%clk 0:04:26.3]} 14... Bf5 {[%clk 0:03:24.2]} 15.
Nxd6 {[%clk 0:04:24.9]} 15... cxd6 {[%clk 0:03:20.9]} 16. Rae1 {[%clk
0:04:23.8]} 16... Be6 {[%clk 0:03:16.7]} 17. Bg5+ {[%clk 0:04:21.5]} 17... Kd7
{[%clk 0:03:13.5]} 18. Re3 {[%clk 0:04:20.4]} 18... Rb8 {[%clk 0:03:10.6]} 19.
Rfe1 {[%clk 0:04:19]} 19... Re8 {[%clk 0:03:05.4]} 20. Rxe6 {[%clk 0:04:16.2]}
20... Rxe6 {[%clk 0:03:03.5]} 21. Rxe6 {[%clk 0:04:16.1]} 21... Kxe6 {[%clk
0:03:00.5]} 22. Be3 {[%clk 0:04:16]} 22... c5 {[%clk 0:02:56.8]} 23. Kf1 {[%clk
0:04:13.6]} 23... d5 {[%clk 0:02:53.6]} 24. Ke2 {[%clk 0:04:12.9]} 24... Ke5
{[%clk 0:02:51.6]} 25. f4+ {[%clk 0:04:10.3]} 25... Kd6 {[%clk 0:02:42.8]} 26.
Kf3 {[%clk 0:04:08.9]} 26... a5 {[%clk 0:02:39.3]} 27. g4 {[%clk 0:04:07.2]}
27... h6 {[%clk 0:02:36.4]} 28. f5 {[%clk 0:04:06.5]} 28... d4 {[%clk
0:02:30.4]} 29. Bf4+ {[%clk 0:04:05.3]} 29... Kd5 {[%clk 0:02:27.8]} 30. h4
{[%clk 0:04:05.2]} 30... c4 {[%clk 0:02:23.5]} 31. g5 {[%clk 0:04:04.6]} 31...
hxg5 {[%clk 0:02:20.1]} 32. hxg5 {[%clk 0:04:04.5]} 32... a4 {[%clk 0:02:15.1]}
33. Kg4 {[%clk 0:04:02.8]} 33... d3 {[%clk 0:02:04.5]} 34. cxd3 {[%clk
0:04:01.1]} 34... cxd3 {[%clk 0:02:01.6]} 35. f6 {[%clk 0:03:59]} 35... gxf6
{[%clk 0:01:57.7]} 36. gxf6 {[%clk 0:03:58.4]} 36... Ke6 {[%clk 0:01:54.3]} 37.
Kg5 {[%clk 0:03:57.3]} 37... Kf7 {[%clk 0:01:52.6]} 38. Kf5 {[%clk 0:03:56.1]}
38... Kf8 {[%clk 0:01:38.7]} 39. Ke6 {[%clk 0:03:53.8]} 39... Ke8 {[%clk
0:01:32.8]} 40. f7+ {[%clk 0:03:53.1]} 40... Kf8 {[%clk 0:01:30.4]} 41. Bh6#
{[%clk 0:03:52]} 1-0

[Event "Live Chess"]
[Site "Chess.com"]
[Date "2023.05.21"]
[Round "-"]
[White "hopton5"]
[Black "bedsdrout"]
[Result "0-1"]
[WhiteElo "1038"]
[BlackElo "577"]
[TimeControl "300"]
[EndTime "3:06:56 PDT"]
[Termination "bedsdrout won on time"]

1. e4 {[%clk 0:04:55.1]} 1... e5 {[%clk 0:04:55.3]} 2. Nf3 {[%clk 0:04:53]} 2...
Nc6 {[%clk 0:04:54.1]} 3. Bb5 {[%clk 0:04:51.2]} 3... Nd4 {[%clk 0:04:47.4]} 4.
Nxd4 {[%clk 0:04:49.3]} 4... Qg5 {[%clk 0:04:31.8]} 5. Nf3 {[%clk 0:04:32.8]}
5... Qxg2 {[%clk 0:04:28.1]} 6. Rg1 {[%clk 0:04:31.5]} 6... Qh3 {[%clk
0:04:18.2]} 7. Nc3 {[%clk 0:04:23.3]} 7... Be7 {[%clk 0:04:09.4]} 8. d4 {[%clk
0:04:02.2]} 8... exd4 {[%clk 0:04:04.6]} 9. Nxd4 {[%clk 0:03:53.9]} 9... Nf6
{[%clk 0:03:53.7]} 10. Nf3 {[%clk 0:03:23.7]} 10... O-O {[%clk 0:03:50.1]} 11.
Bg5 {[%clk 0:03:08.3]} 11... d6 {[%clk 0:03:29.5]} 12. Rg3 {[%clk 0:02:56.1]}
12... Qe6 {[%clk 0:03:12.7]} 13. Qe2 {[%clk 0:02:26.5]} 13... d5 {[%clk
0:03:09.4]} 14. e5 {[%clk 0:02:18]} 14... d4 {[%clk 0:02:49.7]} 15. Bxf6 {[%clk
0:02:10.9]} 15... Bxf6 {[%clk 0:02:41.5]} 16. Bc4 {[%clk 0:01:53]} 16... Qf5
{[%clk 0:02:30.5]} 17. exf6 {[%clk 0:01:44]} 17... Qxf6 {[%clk 0:01:52.3]} 18.
Nd5 {[%clk 0:01:39.7]} 18... Qh6 {[%clk 0:01:44.1]} 19. Ne7+ {[%clk 0:01:17.1]}
19... Kh8 {[%clk 0:01:39.1]} 20. Kd1 {[%clk 0:01:02.8]} 20... Bd7 {[%clk
0:01:24.9]} 21. Nd5 {[%clk 0:00:39.6]} 21... Ba4 {[%clk 0:01:18.1]} 22. b3
{[%clk 0:00:37.3]} 22... Bc6 {[%clk 0:01:11.8]} 23. Ne7 {[%clk 0:00:29.1]} 23...
Rfe8 {[%clk 0:00:59.5]} 24. Nf5 {[%clk 0:00:23.5]} 24... Rxe2 {[%clk 0:00:55]}
25. Nxh6 {[%clk 0:00:21.2]} 25... Rae8 {[%clk 0:00:50.4]} 26. Nxf7+ {[%clk
0:00:19.1]} 26... Kg8 {[%clk 0:00:47.1]} 27. Nd6+ {[%clk 0:00:14.3]} 27... Kf8
{[%clk 0:00:41.3]} 28. Nxe8 {[%clk 0:00:12.8]} 28... Kxe8 {[%clk 0:00:37]} 29.
Kxe2 {[%clk 0:00:10.8]} 29... g5 {[%clk 0:00:30.9]} 30. Re1 {[%clk 0:00:09.3]}
30... Kd7 {[%clk 0:00:27.3]} 31. Kd3 {[%clk 0:00:08.2]} 31... g4 {[%clk
0:00:25.6]} 32. Ne5+ {[%clk 0:00:06.1]} 32... Kd6 {[%clk 0:00:22.8]} 33. Nxc6
{[%clk 0:00:04.8]} 33... Kxc6 {[%clk 0:00:20.8]} 34. Rxg4 {[%clk 0:00:03.8]}
34... Kb6 {[%clk 0:00:17.8]} 35. Re6+ {[%clk 0:00:01]} 35... Kc5 {[%clk
0:00:16]} 0-1

[Event "Live Chess"]
[Site "Chess.com"]
[Date "2023.05.21"]
[Round "-"]
[White "Rusty_Bridges"]
[Black "RoaringKnights"]
[Result "1-0"]
[WhiteElo "1511"]
[BlackElo "1027"]
[TimeControl "300"]
[EndTime "3:07:04 PDT"]
[Termination "Rusty_Bridges won by checkmate"]

1. e4 {[%clk 0:04:57.2]} 1... d6 {[%clk 0:04:59.4]} 2. Nf3 {[%clk 0:04:55.2]}
2... e5 {[%clk 0:04:58.7]} 3. d4 {[%clk 0:04:52.9]} 3... Bg4 {[%clk 0:04:57.2]}
4. Be2 {[%clk 0:04:51.1]} 4... Bxf3 {[%clk 0:04:51.6]} 5. Bxf3 {[%clk
0:04:48.6]} 5... exd4 {[%clk 0:04:50.1]} 6. Qxd4 {[%clk 0:04:46.8]} 6... f6
{[%clk 0:04:48.5]} 7. O-O {[%clk 0:04:40.3]} 7... Nc6 {[%clk 0:04:47.6]} 8. Qd1
{[%clk 0:04:32.5]} 8... Nge7 {[%clk 0:04:42.3]} 9. Nc3 {[%clk 0:04:31.4]} 9...
Ng6 {[%clk 0:04:39.1]} 10. Nd5 {[%clk 0:04:29.1]} 10... Be7 {[%clk 0:04:36.7]}
11. Re1 {[%clk 0:04:19.6]} 11... O-O {[%clk 0:04:35.4]} 12. c3 {[%clk
0:04:07.8]} 12... f5 {[%clk 0:04:34.1]} 13. Be3 {[%clk 0:03:58.7]} 13... fxe4
{[%clk 0:04:31.9]} 14. Bxe4 {[%clk 0:03:57.3]} 14... Bg5 {[%clk 0:04:29.8]} 15.
Qd2 {[%clk 0:03:53.6]} 15... Bxe3 {[%clk 0:04:26.7]} 16. Rxe3 {[%clk 0:03:50.8]}
16... Qg5 {[%clk 0:04:22.6]} 17. Qe2 {[%clk 0:03:38.5]} 17... Nh4 {[%clk
0:04:11.1]} 18. Rg3 {[%clk 0:03:33.7]} 18... Qe5 {[%clk 0:03:57.1]} 19. Qg4
{[%clk 0:03:25.2]} 19... Rf7 {[%clk 0:03:39.6]} 20. Re1 {[%clk 0:03:12.9]} 20...
Kh8 {[%clk 0:02:58.5]} 21. Qxh4 {[%clk 0:03:02.8]} 21... h6 {[%clk 0:02:52]} 22.
Rge3 {[%clk 0:02:48.9]} 22... Qg5 {[%clk 0:02:31.1]} 23. Qxg5 {[%clk 0:02:45.5]}
23... hxg5 {[%clk 0:02:30.3]} 24. Bg6 {[%clk 0:02:41.5]} 24... Rff8 {[%clk
0:02:25.5]} 25. Re8 {[%clk 0:02:37.6]} 25... Rfxe8 {[%clk 0:02:23.5]} 26. Rxe8+
{[%clk 0:02:35.8]} 26... Rxe8 {[%clk 0:02:22.5]} 27. Bxe8 {[%clk 0:02:34.7]}
27... Kh7 {[%clk 0:02:22.1]} 28. Bxc6 {[%clk 0:02:33.5]} 28... bxc6 {[%clk
0:02:20.7]} 29. Nxc7 {[%clk 0:02:32.6]} 29... Kg6 {[%clk 0:02:19.8]} 30. Ne6
{[%clk 0:02:30]} 30... Kf6 {[%clk 0:02:18]} 31. Nd4 {[%clk 0:02:28.3]} 31... c5
{[%clk 0:02:17]} 32. Nc6 {[%clk 0:02:25.7]} 32... a6 {[%clk 0:02:16.3]} 33. Nb8
{[%clk 0:02:24.6]} 33... Ke7 {[%clk 0:02:15.3]} 34. Nxa6 {[%clk 0:02:23.1]}
34... Kd7 {[%clk 0:02:12.6]} 35. b4 {[%clk 0:02:21.9]} 35... Kc6 {[%clk
0:02:11.9]} 36. c4 {[%clk 0:02:18.4]} 36... cxb4 {[%clk 0:02:11]} 37. Nxb4+
{[%clk 0:02:16.5]} 37... Kc5 {[%clk 0:02:10]} 38. Nd3+ {[%clk 0:02:12.9]} 38...
Kxc4 {[%clk 0:02:09.2]} 39. Ne1 {[%clk 0:02:07]} 39... d5 {[%clk 0:02:08.2]} 40.
f3 {[%clk 0:02:03.5]} 40... d4 {[%clk 0:02:06.7]} 41. Kf2 {[%clk 0:02:02.6]}
41... Kc3 {[%clk 0:02:05.4]} 42. Ke2 {[%clk 0:02:01.1]} 42... Kb2 {[%clk
0:02:02.7]} 43. Kd3 {[%clk 0:01:59.1]} 43... Kxa2 {[%clk 0:02:01.8]} 44. Kxd4
{[%clk 0:01:58.2]} 44... Kb2 {[%clk 0:02:01.1]} 45. Ke4 {[%clk 0:01:57.3]} 45...
Kc3 {[%clk 0:02:00.1]} 46. Kf5 {[%clk 0:01:56.2]} 46... Kd2 {[%clk 0:01:58.9]}
47. Kxg5 {[%clk 0:01:53]} 47... Kxe1 {[%clk 0:01:58.2]} 48. Kg6 {[%clk
0:01:52.3]} 48... Kf2 {[%clk 0:01:57.3]} 49. f4 {[%clk 0:01:51.6]} 49... Kxg2
{[%clk 0:01:56.1]} 50. f5 {[%clk 0:01:50.7]} 50... Kxh2 {[%clk 0:01:54.1]} 51.
Kxg7 {[%clk 0:01:49.9]} 51... Kg3 {[%clk 0:01:53.6]} 52. f6 {[%clk 0:01:49.5]}
52... Kf4 {[%clk 0:01:53.2]} 53. f7 {[%clk 0:01:49.3]} 53... Ke5 {[%clk
0:01:52.3]} 54. f8=Q {[%clk 0:01:48.7]} 54... Kd4 {[%clk 0:01:52]} 55. Qd6+
{[%clk 0:01:46.3]} 55... Ke4 {[%clk 0:01:51]} 56. Kf6 {[%clk 0:01:45.3]} 56...
Ke3 {[%clk 0:01:49.7]} 57. Qb4 {[%clk 0:01:43.4]} 57... Kd3 {[%clk 0:01:48.1]}
58. Ke5 {[%clk 0:01:43.3]} 58... Ke3 {[%clk 0:01:46.8]} 59. Qd4+ {[%clk
0:01:42]} 59... Ke2 {[%clk 0:01:45.7]} 60. Qc3 {[%clk 0:01:40.8]} 60... Kf1
{[%clk 0:01:44.3]} 61. Ke4 {[%clk 0:01:40.7]} 61... Kg1 {[%clk 0:01:42.6]} 62.
Kf3 {[%clk 0:01:39.8]} 62... Kh1 {[%clk 0:01:40.8]} 63. Qd2 {[%clk 0:01:38.3]}
63... Kg1 {[%clk 0:01:38.5]} 64. Qg2# {[%clk 0:01:38.2]} 1-0

[Event "Live Chess"]
[Site "Chess.com"]
[Date "2023.05.21"]
[Round "-"]
[White "Ian-Morley"]
[Black "chessfiction"]
[Result "0-1"]
[WhiteElo "1073"]
[BlackElo "2319"]
[TimeControl "300"]
[EndTime "3:07:20 PDT"]
[Termination "chessfiction won by resignation"]

1. e4 {[%clk 0:04:58.7]} 1... d5 {[%clk 0:04:58.2]} 2. exd5 {[%clk 0:04:57.4]}
2... c6 {[%clk 0:04:58.1]} 3. dxc6 {[%clk 0:04:56.2]} 3... e5 {[%clk 0:04:57.1]}
4. cxb7 {[%clk 0:04:53.7]} 4... Bxb7 {[%clk 0:04:57]} 5. f3 {[%clk 0:04:51.9]}
5... Bc5 {[%clk 0:04:55]} 6. Bb5+ {[%clk 0:04:46.5]} 6... Nc6 {[%clk 0:04:53.4]}
7. Nc3 {[%clk 0:04:40.9]} 7... Qb6 {[%clk 0:04:52.2]} 8. Bxc6+ {[%clk
0:04:39.2]} 8... Bxc6 {[%clk 0:04:50.2]} 9. Ne4 {[%clk 0:04:38]} 9... Bxe4
{[%clk 0:04:46.4]} 10. fxe4 {[%clk 0:04:28.8]} 10... Bxg1 {[%clk 0:04:44.3]} 11.
Qe2 {[%clk 0:04:23.4]} 11... Bc5 {[%clk 0:04:40]} 12. d3 {[%clk 0:04:19.6]}
12... Nf6 {[%clk 0:04:38.9]} 13. b3 {[%clk 0:04:15.1]} 13... Bd4 {[%clk
0:04:37.3]} 14. Rb1 {[%clk 0:04:13]} 14... Qa5+ {[%clk 0:04:34.6]} 15. Bd2
{[%clk 0:04:05.7]} 15... Qxa2 {[%clk 0:04:33.3]} 16. Qd1 {[%clk 0:04:00.2]}
16... O-O {[%clk 0:04:24.2]} 17. Ra1 {[%clk 0:03:58.7]} 17... Qxa1 {[%clk
0:04:22.3]} 0-1

[Event "Live Chess"]
[Site "Chess.com"]
[Date "2023.05.21"]
[Round "-"]
[White "EdenHazard8"]
[Black "RockTroll"]
[Result "0-1"]
[WhiteElo "1963"]
[BlackElo "2234"]
[TimeControl "300"]
[EndTime "3:07:47 PDT"]
[Termination "RockTroll won by resignation"]

1. e4 {[%clk 0:04:59]} 1... d5 {[%clk 0:04:58.7]} 2. exd5 {[%clk 0:04:58.2]}
2... Qxd5 {[%clk 0:04:58.6]} 3. Nc3 {[%clk 0:04:58.1]} 3... Qd8 {[%clk
0:04:57.5]} 4. d4 {[%clk 0:04:58]} 4... Nf6 {[%clk 0:04:56.8]} 5. Nf3 {[%clk
0:04:57.9]} 5... Bg4 {[%clk 0:04:55.8]} 6. Bd3 {[%clk 0:04:55.5]} 6... c6 {[%clk
0:04:53.3]} 7. Ne2 {[%clk 0:04:54.2]} 7... Bxf3 {[%clk 0:04:52.1]} 8. gxf3
{[%clk 0:04:53.3]} 8... e6 {[%clk 0:04:50.7]} 9. c3 {[%clk 0:04:52.1]} 9... Nbd7
{[%clk 0:04:49.9]} 10. Rg1 {[%clk 0:04:50.6]} 10... g6 {[%clk 0:04:47.3]} 11.
Be3 {[%clk 0:04:49.2]} 11... Bg7 {[%clk 0:04:46.1]} 12. Qd2 {[%clk 0:04:48.5]}
12... Nd5 {[%clk 0:04:37.4]} 13. Bh6 {[%clk 0:04:46.2]} 13... Bxh6 {[%clk
0:04:33.7]} 14. Qxh6 {[%clk 0:04:46.1]} 14... Qb6 {[%clk 0:04:33.1]} 15. O-O-O
{[%clk 0:04:44.5]} 15... O-O-O {[%clk 0:04:31.4]} 16. Nf4 {[%clk 0:04:39.4]}
16... Nxf4 {[%clk 0:04:26.9]} 17. Qxf4 {[%clk 0:04:39.3]} 17... Qa5 {[%clk
0:04:24.4]} 18. Kb1 {[%clk 0:04:35.4]} 18... Rhf8 {[%clk 0:04:19.3]} 19. Qh4
{[%clk 0:04:27.1]} 19... h5 {[%clk 0:04:17.3]} 20. Rg5 {[%clk 0:04:25.4]} 20...
Qa4 {[%clk 0:04:14.7]} 21. Re1 {[%clk 0:04:06.8]} 21... Nb6 {[%clk 0:04:09.1]}
22. Rc5 {[%clk 0:03:51.3]} 22... Rd5 {[%clk 0:03:58.4]} 23. Qe7 {[%clk
0:03:44.1]} 23... Rfd8 {[%clk 0:03:50.1]} 24. b3 {[%clk 0:03:41.8]} 24... Rxc5
{[%clk 0:03:26.2]} 25. Qxc5 {[%clk 0:03:21.4]} 25... Nd7 {[%clk 0:03:12.8]} 26.
bxa4 {[%clk 0:03:10]} 26... Nxc5 {[%clk 0:03:11.1]} 27. Bxg6 {[%clk 0:03:09.1]}
27... Nxa4 {[%clk 0:03:07.7]} 28. Bxf7 {[%clk 0:03:04.2]} 28... Nxc3+ {[%clk
0:03:05.9]} 29. Kb2 {[%clk 0:03:03.1]} 29... Nb5 {[%clk 0:03:01.7]} 30. Bxe6+
{[%clk 0:03:01.9]} 30... Kc7 {[%clk 0:03:01.3]} 31. Bf7 {[%clk 0:02:50.4]} 31...
Rxd4 {[%clk 0:02:58.3]} 32. Bxh5 {[%clk 0:02:47.4]} 32... Rd2+ {[%clk
0:02:57.9]} 33. Kb3 {[%clk 0:02:41.2]} 33... Rxf2 {[%clk 0:02:57.3]} 34. h4
{[%clk 0:02:32]} 34... Nd4+ {[%clk 0:02:53]} 35. Kc4 {[%clk 0:02:27.9]} 35...
Nxf3 {[%clk 0:02:52.2]} 36. Re7+ {[%clk 0:02:18]} 36... Kd6 {[%clk 0:02:51.5]}
37. Rxb7 {[%clk 0:02:14.6]} 37... Ne5+ {[%clk 0:02:42.9]} 38. Kb3 {[%clk
0:02:08.1]} 38... a5 {[%clk 0:02:35.5]} 39. Rh7 {[%clk 0:01:44.5]} 39... Kc5
{[%clk 0:02:31.6]} 40. Be8 {[%clk 0:01:41.7]} 40... Rf3+ {[%clk 0:02:28.4]} 41.
Kb2 {[%clk 0:01:36.6]} 41... Nc4+ {[%clk 0:02:27.1]} 42. Kc2 {[%clk 0:01:33.6]}
42... Rf2+ {[%clk 0:02:20.4]} 43. Kd3 {[%clk 0:01:29.4]} 43... Ne5+ {[%clk
0:02:17.3]} 44. Ke4 {[%clk 0:01:28.1]} 44... Re2+ {[%clk 0:02:15.5]} 45. Kf4
{[%clk 0:01:25.5]} 45... Nd3+ {[%clk 0:02:14.7]} 46. Kf3 {[%clk 0:01:24.4]}
46... Rxe8 {[%clk 0:02:14.3]} 0-1

[Event "Live Chess"]
[Site "Chess.com"]
[Date "2023.05.21"]
[Round "-"]
[White "McSlash1"]
[Black "Tech_Titan"]
[Result "1-0"]
[WhiteElo "1996"]
[BlackElo "935"]
[TimeControl "300"]
[EndTime "3:07:47 PDT"]
[Termination "McSlash1 won by resignation"]

1. e4 {[%clk 0:04:59.2]} 1... e5 {[%clk 0:04:59.3]} 2. Nf3 {[%clk 0:04:58.2]}
2... Nf6 {[%clk 0:04:58.2]} 3. Nxe5 {[%clk 0:04:56.8]} 3... Nxe4 {[%clk
0:04:57.4]} 4. Qe2 {[%clk 0:04:55.6]} 4... Qe7 {[%clk 0:04:56.3]} 5. Qxe4 {[%clk
0:04:54.6]} 5... d6 {[%clk 0:04:55.6]} 6. d4 {[%clk 0:04:53.7]} 6... dxe5 {[%clk
0:04:53.9]} 7. dxe5 {[%clk 0:04:53.6]} 7... Nc6 {[%clk 0:04:51.8]} 8. f4 {[%clk
0:04:51.9]} 8... Qh4+ {[%clk 0:04:37]} 9. g3 {[%clk 0:04:49.6]} 9... Qe7 {[%clk
0:04:28.1]} 10. Bb5 {[%clk 0:04:47.2]} 10... f6 {[%clk 0:04:26.2]} 11. Nc3
{[%clk 0:04:45.1]} 11... fxe5 {[%clk 0:04:24.5]} 12. Qxe5 {[%clk 0:04:44.8]}
12... a6 {[%clk 0:04:20.2]} 13. Bxc6+ {[%clk 0:04:42.6]} 13... bxc6 {[%clk
0:04:18.8]} 14. Qxe7+ {[%clk 0:04:41.1]} 14... Bxe7 {[%clk 0:04:17.4]} 15. Be3
{[%clk 0:04:40.8]} 15... O-O {[%clk 0:04:16.3]} 16. O-O-O {[%clk 0:04:38.9]}
16... Re8 {[%clk 0:04:15.1]} 17. Rhe1 {[%clk 0:04:37.9]} 17... Bg4 {[%clk
0:04:11.2]} 18. Rd2 {[%clk 0:04:36.5]} 18... Bb4 {[%clk 0:04:07.9]} 19. Bf2
{[%clk 0:04:32.1]} 19... Bxc3 {[%clk 0:04:05.1]} 20. bxc3 {[%clk 0:04:29.8]}
20... Rxe1+ {[%clk 0:04:02.7]} 21. Bxe1 {[%clk 0:04:29.7]} 21... Re8 {[%clk
0:04:00.6]} 22. Bf2 {[%clk 0:04:29]} 22... Kf7 {[%clk 0:03:48.3]} 23. Bd4 {[%clk
0:04:22.2]} 23... g6 {[%clk 0:03:44.3]} 24. c4 {[%clk 0:04:15.4]} 24... Re1+
{[%clk 0:03:40.8]} 25. Kb2 {[%clk 0:04:14.4]} 25... Be6 {[%clk 0:03:26.7]} 26.
Kc3 {[%clk 0:04:12.1]} 26... Ke7 {[%clk 0:03:24]} 27. c5 {[%clk 0:04:08.4]}
27... Bd5 {[%clk 0:03:15.6]} 28. a4 {[%clk 0:03:56.5]} 28... Ke6 {[%clk
0:03:11.2]} 29. Be5 {[%clk 0:03:41.8]} 29... Ra1 {[%clk 0:03:03.6]} 30. Kb4
{[%clk 0:03:34.4]} 30... Rb1+ {[%clk 0:02:51.2]} 31. Ka3 {[%clk 0:03:33.7]}
31... Kd7 {[%clk 0:02:45]} 32. c4 {[%clk 0:03:31.6]} 32... Rc1 {[%clk
0:02:21.1]} 33. cxd5 {[%clk 0:03:30.5]} 33... Rxc5 {[%clk 0:02:19.7]} 34. dxc6+
{[%clk 0:03:28.2]} 34... Kxc6 {[%clk 0:02:18]} 35. Kb3 {[%clk 0:03:25.9]} 35...
Kb6 {[%clk 0:02:04.4]} 36. Bd4 {[%clk 0:03:24.3]} 1-0

[Event "Live Chess"]
[Site "Chess.com"]
[Date "2023.05.21"]
[Round "-"]
[White "CarlsenCab"]
[Black "BJAW87"]
[Result "0-1"]
[WhiteElo "519"]
[BlackElo "1438"]
[TimeControl "300"]
[EndTime "3:08:05 PDT"]
[Termination "BJAW87 won by resignation"]

1. d4 {[%clk 0:04:54.2]} 1... Nf6 {[%clk 0:04:58.9]} 2. Nf3 {[%clk 0:04:53.4]}
2... g6 {[%clk 0:04:58.6]} 3. Bf4 {[%clk 0:04:52.1]} 3... Bg7 {[%clk 0:04:57.6]}
4. e3 {[%clk 0:04:51.2]} 4... O-O {[%clk 0:04:57.2]} 5. Bd3 {[%clk 0:04:50.5]}
5... d6 {[%clk 0:04:56.6]} 6. c3 {[%clk 0:04:49.7]} 6... Nbd7 {[%clk 0:04:53.5]}
7. O-O {[%clk 0:04:49.1]} 7... c5 {[%clk 0:04:53.2]} 8. dxc5 {[%clk 0:04:46.8]}
8... Nxc5 {[%clk 0:04:53.1]} 9. h3 {[%clk 0:04:41.5]} 9... Nxd3 {[%clk
0:04:47.7]} 10. Qxd3 {[%clk 0:04:40.1]} 10... b6 {[%clk 0:04:44.5]} 11. Nbd2
{[%clk 0:04:39.1]} 11... Bb7 {[%clk 0:04:43.4]} 12. Nc4 {[%clk 0:04:37.2]} 12...
Nd5 {[%clk 0:04:34.7]} 13. a4 {[%clk 0:04:24.4]} 13... Nxf4 {[%clk 0:04:32.3]}
14. exf4 {[%clk 0:04:23]} 14... Rc8 {[%clk 0:04:26.1]} 15. Ra3 {[%clk
0:04:17.6]} 15... Ba6 {[%clk 0:04:22.5]} 16. Qd5 {[%clk 0:04:05.4]} 16... Bxc4
{[%clk 0:04:17.7]} 17. Qd4 {[%clk 0:03:58]} 17... Bxd4 {[%clk 0:04:15.9]} 18.
cxd4 {[%clk 0:03:56.9]} 18... Bxf1 {[%clk 0:04:14.1]} 19. Kxf1 {[%clk
0:03:55.5]} 19... Rc1+ {[%clk 0:04:12]} 20. Ke2 {[%clk 0:03:53.8]} 20... Rc2+
{[%clk 0:04:10.7]} 0-1